bitfinex/quotes_ETHUSD_20241130
["timestamp","ask_amount","ask_price","bid_price","bid_amount"]
[1732941330634,0.58433819,3640.8,3639.4,0.24085]
[1732941331638,0.55,3640.8,3639.4,0.24085]
[1732941331839,0.55,3640.8,3639.5,0.01390022]
[1732941332040,0.55,3640.8,3639.5,0.26632502]
[1732941332288,0.55,3640.8,3639.6,0.01390021]
[1732941332477,1.6429,3640.9,3639.5,0.26632502]
[1732941332694,1.6429,3640.9,3640.8,2.74664]
[1732941332992,1.6429,3641.4,3641.0,2.74648]
[1732941333587,0.0343316,3641.3,3640.8,2.74663]
[1732941333788,0.03433203,3641.3,3640.2,2.74703]
[1732941334104,0.03433203,3641.3,3640.4,2.74688]
[1732941334807,0.55,3641.0,3640.4,2.74688]
[1732941335091,0.03433552,3640.9,3640.4,2.74688]
[1732941335294,0.55,3640.8,3640.4,2.74688]
[1732941335590,0.55,3640.8,3640.2,2.74703]
[1732941335591,0.55,3640.6,3640.2,2.74703]
[1732941335751,0.55,3640.4,3640.2,2.74703]
[1732941335952,0.55,3640.4,3640.3,2.74702]
[1732941336153,0.55,3640.4,3640.3,3.296425]
[1732941336393,1.6429,3641.7,3641.1,2.74638]
[1732941336566,1.6429,3641.7,3640.4,1.5335]
[1732941336772,0.03432965,3641.6,3641.1,2.74636]
[1732941336982,1.6429,3641.7,3641.1,2.74636]
[1732941337355,1.6429,3641.7,3641.4,2.74618]
[1732941337505,0.14295126,3641.9,3639.7,2.74745]
[1732941337506,4.5684,3641.5,3640.8,2.74658]
[1732941337804,0.03433209,3641.4,3640.8,2.74658]
[1732941338160,0.55,3641.3,3640.6,2.74679]
[1732941338362,0.55,3641.1,3639.8,1.5967]
[1732941338601,0.55,3640.9,3639.8,1.7830025]
[1732941339303,1.5684,3640.8,3639.8,1.7830025]
[1732941339801,0.55,3640.7,3639.8,1.7830025]
[1732941340783,0.55,3640.7,3639.3,0.8888905]
[1732941340969,3.0,3641.5,3639.3,0.8888905]
[1732941340970,0.55,3640.1,3639.3,0.875]
[1732941341196,2.1184,3639.9,3639.3,0.875]
[1732941341383,0.55,3639.7,3639.3,0.875]
[1732941342491,0.55,3639.8,3639.3,0.875]
[1732941344427,0.55,3639.6,3639.3,0.875]
[1732941345718,4.17748787,3639.4,3639.3,0.875]
[1732941347214,2.0622,3639.4,3639.3,0.875]
[1732941348732,1.5346,3639.9,3639.3,0.875]
[1732941348935,1.5346,3640.2,3640.0,2.7472]
[1732941349231,0.14304869,3640.7,3640.3,2.74702]
[1732941349983,0.14304869,3640.7,3640.0,2.74725]
[1732941350187,1.5346,3640.9,3640.1,2.74713]
[1732941350440,1.5346,3640.9,3640.0,2.74725]
[1732941350603,1.5346,3640.9,3639.7,2.74743]
[1732941350604,1.5346,3640.4,3638.8,1.5445]
[1732941350929,0.55,3640.3,3639.7,2.74741]
[1732941351223,0.55,3640.1,3639.7,2.74741]
[1732941351389,0.03434325,3640.0,3639.7,2.74741]
[1732941351591,0.55,3639.9,3639.7,2.74741]
[1732941352022,0.55,3640.2,3639.5,2.74763]
[1732941352362,0.55,3640.0,3639.5,2.74763]
[1732941352535,0.03434327,3639.9,3639.5,2.74763]
[1732941352828,0.55,3639.8,3639.7,2.74747]
[1732941356207,1.5346,3640.8,3639.8,5.4948]
[1732941356521,1.5346,3640.8,3640.5,2.74686]
[1732941357153,8.98,3641.2,3640.6,2.74678]
[1732941357333,1.72574043,3641.3,3640.3,1.578]
[1732941357518,1.76007609,3641.3,3640.5,2.74681]
[1732941357832,4.76007609,3641.3,3640.5,2.74681]
[1732941358038,4.72574043,3641.3,3639.9,1.578]
[1732941358257,1.5827,3641.7,3641.3,2.74619]
[1732941358424,1.5827,3641.7,3640.9,2.74657]
[1732941358613,1.61702951,3641.7,3641.0,2.74649]
[1732941359152,1.61702951,3641.7,3640.8,2.74664]
[1732941359447,1.5827,3641.7,3641.1,2.74641]
[1732941359745,0.55,3641.6,3640.9,2.74657]
[1732941359949,0.55,3641.6,3640.8,2.7466]
[1732941360147,0.55,3641.6,3641.1,2.7464]
[1732941360809,0.55,3641.6,3641.2,2.74633]
[1732941361843,1.5827,3642.0,3641.6,2.74603]
[1732941362044,1.5827,3642.0,3641.7,2.74596]
[1732941362250,1.5827,3642.0,3641.1,1.578]
[1732941362251,1.5827,3642.0,3641.2,2.74634]
[1732941362461,1.5827,3642.0,3641.4,2.74613]
[1732941362749,0.03432486,3641.9,3641.6,2.74603]
[1732941363050,1.5827,3642.0,3641.6,2.74603]
[1732941363424,1.5827,3642.0,3641.1,1.578]
[1732941363425,0.58432486,3641.9,3641.1,1.578]
[1732941363634,0.58432486,3641.9,3641.5,2.74611]
[1732941363810,0.58432486,3641.9,3641.6,2.74604]
[1732941364013,0.55,3641.9,3641.7,2.74591]
[1732941364342,2.11528787,3642.9,3641.9,2.7458]
[1732941364343,0.55,3642.4,3641.9,2.7458]
[1732941364536,1.5947,3642.5,3642.2,2.74558]
[1732941364711,0.03431985,3642.4,3642.2,2.74558]
[1732941365131,1.5947,3642.5,3642.2,2.74558]
[1732941365650,1.5947,3643.0,3642.2,2.74558]
[1732941365951,0.55,3642.9,3642.2,2.74558]
[1732941366161,0.58431954,3642.9,3642.1,2.74564]
[1732941366322,3.0,3642.8,3642.0,2.74574]
[1732941366651,0.55,3642.6,3642.1,2.74563]
[1732941367022,0.55,3642.9,3642.2,2.74558]
[1732941367222,1.5947,3643.0,3642.2,2.74558]
[1732941367436,1.5947,3643.0,3642.4,2.74538]
[1732941368261,1.5947,3643.0,3642.5,2.74535]
[1732941368717,0.55,3642.9,3642.5,2.74535]
[1732941369113,0.55,3642.9,3642.7,2.74517]
[1732941369439,0.55,3642.9,3642.0,2.74568]
[1732941369440,1.5273,3642.8,3642.0,2.74568]
[1732941369638,0.58431519,3642.7,3641.9,1.6084]
[1732941369815,0.58431519,3642.7,3642.1,2.74561]
[1732941371056,0.58431519,3642.7,3642.2,2.74557]
[1732941371257,0.55,3642.7,3642.3,2.7455]
[1732941372471,0.03431779,3643.3,3642.2,2.74557]
[1732941372472,0.5,3643.0,3642.2,2.74557]
[1732941372761,0.5,3643.0,3642.4,2.74543]
[1732941372968,0.53431678,3643.0,3642.4,2.74543]
[1732941373332,0.53431678,3643.0,3642.2,2.74557]
[1732941373531,0.53431678,3643.0,3641.9,1.6084]
[1732941373754,0.53431678,3643.0,3642.2,2.74558]
[1732941374061,0.5,3643.0,3641.9,1.6084]
[1732941374356,0.5,3643.0,3642.5,2.74529]
[1732941374517,0.5,3643.0,3642.3,2.7455]
[1732941374715,0.5,3643.0,3642.6,2.74528]
[1732941375321,0.5,3643.0,3642.4,2.74542]
[1732941376045,0.53431761,3643.0,3642.4,2.74542]
[1732941376246,0.5,3643.0,3642.4,2.74542]
[1732941376447,0.55,3642.8,3642.4,2.74542]
[1732941376636,0.53431759,3643.0,3642.4,2.74542]
[1732941376989,0.5,3643.0,3642.4,2.74542]
[1732941377255,0.5,3643.0,3642.6,2.74523]
[1732941377458,0.5,3643.0,3642.0,2.90656]
[1732941377459,0.55,3642.8,3642.3,2.74546]
[1732941377618,0.55,3642.6,3642.1,2.74566]
[1732941377957,0.55,3642.9,3642.3,2.74551]
[1732941378741,0.55,3642.9,3642.2,2.74557]
[1732941378977,0.55,3643.0,3642.6,2.74527]
[1732941379280,0.55,3643.0,3642.6,2.74523]
[1732941379641,0.55,3643.0,3642.4,2.74541]
[1732941379978,0.55,3643.0,3642.7,2.74521]
[1732941380682,0.55,3643.0,3642.5,2.7453]
[1732941380683,0.55,3642.8,3642.5,2.7453]
[1732941380843,0.55,3642.8,3642.3,2.74549]
[1732941381283,0.55,3642.6,3642.3,2.74549]
[1732941381782,0.55,3642.6,3642.5,2.74536]
[1732941382412,0.55,3642.9,3642.3,2.74548]
[1732941382684,0.55,3642.7,3642.1,2.74564]
[1732941382861,0.55,3642.7,3642.4,2.74543]
[1732941383243,0.55,3642.9,3642.4,2.74543]
[1732941383649,0.55,3642.7,3642.4,2.74543]
[1732941384489,0.55,3642.5,3642.4,2.74543]
[1732941384842,0.55,3642.5,3642.1,3.471714]
[1732941385044,0.55,3642.8,3642.1,3.471714]
[1732941385282,0.55,3642.6,3642.3,2.74548]
[1732941385581,0.55,3642.6,3642.4,2.74543]
[1732941386185,1.5273,3643.1,3642.4,2.74543]
[1732941386186,0.55,3642.9,3642.4,2.74543]
[1732941386385,0.55,3642.7,3642.4,2.74543]
[1732941386574,0.55,3642.7,3642.6,2.74529]
[1732941386771,0.55,3643.0,3642.6,2.74529]
[1732941387461,3.0,3643.8,3642.6,2.74529]
[1732941387462,1.6188,3643.5,3643.1,2.74489]
[1732941387992,0.03431121,3643.4,3643.1,2.74489]
[1732941388181,0.03431121,3643.4,3642.9,2.74506]
[1732941388381,1.6188,3643.5,3642.7,1.6157]
[1732941388575,1.6188,3643.5,3642.8,2.74512]
[1732941388875,0.55,3643.3,3642.8,2.74512]
[1732941389070,0.55,3643.1,3642.8,2.74512]
[1732941389476,0.55,3642.9,3642.6,2.74526]
[1732941389671,0.55,3643.1,3642.6,2.74526]
[1732941389927,0.55,3642.9,3642.4,2.74542]
[1732941390060,0.03431584,3642.8,3641.4,2.11528787]
[1732941390268,3.29531,3642.6,3641.8,2.74588]
[1732941390585,2.097,3642.4,3641.8,2.74583]
[1732941390768,0.55,3642.2,3641.6,1.5829]
[1732941390957,3.32992179,3642.2,3641.3,2.74621]
[1732941391169,0.55,3642.0,3641.4,2.74618]
[1732941391364,0.55,3642.0,3640.8,2.74664]
[1732941391563,0.55,3642.0,3641.4,2.74615]
[1732941391803,0.55,3642.0,3641.3,2.74622]
[1732941391977,0.55,3642.0,3641.5,2.74611]
[1732941392697,0.55,3642.0,3641.6,2.74604]
[1732941393402,0.55,3642.0,3641.1,1.5829]
[1732941393705,0.55,3642.0,3641.6,2.74598]
[1732941394709,0.55,3642.3,3641.8,2.74589]
[1732941396423,0.55,3642.3,3641.9,2.74577]
[1732941396566,2.74498,3643.1,3641.8,1.5829]
[1732941396567,0.55,3642.5,3642.1,2.74565]
[1732941396770,1.547,3642.7,3642.1,2.74565]
[1732941396771,0.55,3642.6,3642.3,2.74549]
[1732941397481,1.547,3642.7,3642.4,2.7454]
[1732941397630,1.547,3643.1,3642.6,2.74527]
[1732941398336,0.03431479,3643.0,3642.6,2.74527]
[1732941398831,0.55,3642.9,3642.4,2.74542]
[1732941399031,0.55,3642.9,3642.2,2.74559]
[1732941399032,0.55,3642.7,3642.2,2.74559]
[1732941399521,2.745,3643.0,3642.2,2.74559]
[1732941399522,0.55,3642.9,3642.2,2.74559]
[1732941400236,0.55,3642.9,3642.0,2.74574]
[1732941400237,0.55,3642.6,3641.7,2.7459]
[1732941400390,0.55,3642.6,3641.4,1.5829]
[1732941400730,0.55,3642.6,3641.5,0.44677625]
[1732941400892,1.547,3643.0,3642.6,2.74528]
[1732941401307,0.03431449,3642.9,3642.1,2.74564]
[1732941401527,1.547,3643.0,3642.3,2.74546]
[1732941402105,0.55,3642.9,3642.3,2.74546]
[1732941403348,1.6342,3643.5,3642.4,2.74544]
[1732941403529,1.6342,3643.5,3643.1,2.74484]
[1732941403701,1.6342,3643.5,3643.3,2.74476]
[1732941405509,0.55,3643.4,3643.3,2.74476]
[1732941407648,0.55,3643.7,3643.3,2.74476]
[1732941409760,0.14320088,3644.0,3643.3,0.714953]
[1732941409965,1.6205,3644.2,3643.8,2.448529]
[1732941410128,1.6205,3644.2,3643.3,2.74472]
[1732941410129,4.36459,3644.2,3643.3,2.74472]
[1732941410327,0.03430435,3644.1,3643.4,2.74463]
[1732941410725,2.77852435,3644.1,3643.1,2.74491]
[1732941410944,2.74422,3644.1,3643.0,1.6598]
[1732941411149,0.55,3644.0,3643.3,2.7447]
[1732941411538,0.55,3644.0,3643.4,2.74463]
[1732941411864,0.55,3644.0,3643.1,2.74484]
[1732941411865,0.55,3644.1,3643.5,2.7446]
[1732941412875,4.36459,3644.2,3643.8,2.74437]
[1732941412876,1.6205,3644.2,3643.8,2.74437]
[1732941413011,1.6205,3644.2,3643.9,2.7443]
[1732941413761,1.6205,3644.2,3643.8,2.74438]
[1732941414353,0.55,3644.1,3643.8,2.74438]
[1732941415065,0.58430415,3644.1,3643.1,2.74491]
[1732941415250,3.29416,3644.1,3643.3,2.74471]
[1732941415422,0.55,3643.9,3643.3,2.74471]
[1732941415620,0.55,3643.9,3643.1,2.74491]
[1732941415819,0.55,3644.0,3643.4,2.74463]
[1732941416893,0.55,3644.0,3643.0,4.40478]
[1732941416894,3.29425,3644.0,3643.0,4.40478]
[1732941417184,3.29425,3644.0,3643.3,2.7447]
[1732941417595,0.55,3644.0,3643.6,2.74452]
[1732941417890,0.55,3644.1,3643.6,2.74452]
[1732941418200,0.55,3644.1,3643.8,2.74438]
[1732941418548,0.55,3644.4,3643.8,2.74438]
[1732941419348,4.50972565,3644.5,3643.7,2.74438]
[1732941419349,1.76586565,3644.5,3644.0,2.74423]
[1732941419778,0.03430168,3644.4,3644.0,2.74423]
[1732941420657,0.55,3644.3,3643.8,2.74433]
[1732941420866,0.55,3644.3,3643.7,2.74438]
[1732941421062,0.55,3644.3,3643.9,2.74429]
[1732941421422,1.76586565,3644.5,3643.3,2.74472]
[1732941421423,0.55,3643.9,3643.3,2.74472]
[1732941421890,0.55,3643.9,3643.3,2.74471]
[1732941422188,0.55,3643.9,3643.5,2.74459]
[1732941422645,0.55,3643.9,3643.6,2.74447]
[1732941424004,0.55,3643.9,3643.4,2.74467]
[1732941424503,0.55,3643.9,3643.6,2.7445]
[1732941425407,0.55,3643.9,3643.4,2.74467]
[1732941425408,0.58430461,3643.9,3643.4,2.74467]
[1732941425588,0.55,3643.9,3643.3,2.74476]
[1732941425795,0.55,3643.7,3643.0,2.74499]
[1732941426097,0.55,3643.7,3643.3,2.74471]
[1732941426302,0.55,3643.9,3643.3,2.74471]
[1732941426506,0.55,3643.7,3643.6,2.74453]
[1732941428324,0.55,3643.7,3643.2,1.6596]
[1732941428485,0.58430544,3644.0,3643.5,2.7446]
[1732941428873,0.58430544,3644.0,3643.3,2.74476]
[1732941429074,0.55,3643.6,3643.1,2.7449]
[1732941429400,0.55,3643.4,3642.9,4.31056]
[1732941429603,0.55,3643.6,3643.1,2.74486]
[1732941429994,0.55,3643.6,3643.0,2.74495]
[1732941430516,3.29455,3643.6,3642.9,1.5655]
[1732941430712,3.29459,3643.6,3642.9,2.74501]
[1732941431173,3.29457,3643.6,3642.7,2.7452]
[1732941431379,3.29457,3643.6,3642.9,2.745]
[1732941431820,0.55,3643.4,3642.9,2.745]
[1732941433122,0.55,3643.2,3642.9,2.745]
[1732941433329,1.6465,3644.0,3643.8,2.74435]
[1732941433495,1.6465,3644.4,3643.8,2.74435]
[1732941433818,0.25547743,3644.3,3643.8,2.74435]
[1732941434122,4.39044,3644.4,3643.8,2.74435]
[1732941434626,0.80544568,3644.3,3643.6,2.74448]
[1732941434784,0.55,3644.3,3643.8,2.74437]
[1732941435328,0.55,3644.3,3643.6,2.74448]
[1732941435539,3.29402,3644.3,3643.6,2.74448]
[1732941436218,0.55,3644.3,3643.7,2.7444]
[1732941436523,0.25545726,3644.2,3643.5,2.74456]
[1732941436726,0.55,3644.1,3643.5,2.74456]
[1732941437023,0.55,3644.3,3643.5,2.74456]
[1732941437238,0.55,3644.1,3643.5,2.74456]
[1732941438227,0.55,3644.3,3643.6,2.74453]
[1732941438383,4.39044,3644.4,3643.6,2.74453]
[1732941438384,1.6465,3644.4,3643.6,2.74453]
[1732941438582,0.25551254,3644.3,3643.1,4.31035]
[1732941438788,0.03430397,3644.2,3643.6,2.74447]
[1732941439210,2.74408,3644.2,3643.6,2.74447]
[1732941439520,1.6465,3644.4,3643.9,2.74431]
[1732941439734,4.39048,3644.4,3643.7,2.74439]
[1732941440026,0.25554736,3644.3,3643.7,2.74439]
[1732941440320,4.39048,3644.4,3643.7,2.74439]
[1732941440820,0.55,3644.3,3643.7,2.74439]
[1732941441133,0.55,3644.3,3643.8,2.74437]
[1732941443335,3.29387,3644.5,3643.8,2.74437]
[1732941443531,0.55,3644.3,3643.8,2.74437]
[1732941444306,0.55,3644.3,3643.7,1.5155]
[1732941444307,0.55,3644.5,3643.9,2.74429]
[1732941444730,3.29386,3644.5,3643.9,2.74429]
[1732941444938,0.55,3644.3,3643.9,2.74429]
[1732941445147,3.29386,3644.5,3643.9,2.74429]
[1732941445432,0.55,3644.3,3643.7,4.25995]
[1732941445843,0.55,3644.3,3643.8,2.74437]
[1732941446894,0.55,3644.3,3643.1,1.098396]
[1732941447098,0.55,3644.1,3643.6,2.74447]
[1732941447299,0.55,3644.1,3643.7,2.74439]
[1732941448017,1.5352,3644.2,3643.5,2.7446]
[1732941448018,0.55,3644.3,3643.8,2.74436]
[1732941449359,0.55,3644.4,3643.6,2.74453]
[1732941449515,0.55,3644.4,3643.8,2.74437]
[1732941450161,0.55,3644.4,3643.7,0.0138294]
[1732941450353,0.55,3644.4,3644.0,2.74418]
[1732941450973,1.5032,3644.8,3644.3,2.74395]
[1732941451260,1.75889582,3645.1,3644.6,2.74373]
[1732941451419,2.74313,3645.5,3644.8,2.74357]
[1732941451420,1.5032,3645.4,3644.8,2.74357]
[1732941451619,0.2555893,3645.3,3644.8,2.74357]
[1732941451832,1.5032,3645.4,3644.8,2.74357]
[1732941452118,1.5032,3645.4,3644.6,4.25206]
[1732941452342,1.5032,3645.4,3644.9,2.74349]
[1732941452550,1.5032,3645.4,3644.6,1.5083]
[1732941452822,0.14312433,3645.7,3645.2,1.5083]
[1732941453052,1.5032,3645.8,3645.3,2.74322]
[1732941453424,1.5032,3645.8,3645.4,2.74317]
[1732941453669,1.5032,3645.8,3645.3,2.74321]
[1732941453959,1.53748802,3645.8,3645.3,2.74325]
[1732941454366,0.55,3645.7,3645.3,2.74325]
[1732941455037,0.55,3645.8,3645.3,2.74325]
[1732941455226,0.55,3646.0,3645.3,2.74325]
[1732941455431,0.55,3646.0,3645.5,2.74309]
[1732941455751,0.03428771,3646.2,3645.4,1.5083]
[1732941455953,1.5032,3646.5,3645.9,2.74273]
[1732941456164,1.5032,3646.5,3645.4,1.5083]
[1732941456465,1.5032,3646.5,3645.9,2.74275]
[1732941456825,1.5032,3646.5,3645.9,2.74279]
[1732941457164,0.55,3646.4,3645.9,2.74279]
[1732941457670,1.5032,3646.5,3645.9,3.291304]
[1732941457869,1.5032,3646.5,3645.4,1.5083]
[1732941458036,1.5032,3646.5,3646.1,2.74264]
[1732941458633,0.55,3646.4,3646.1,2.74264]
[1732941459371,0.55,3646.6,3646.2,2.74256]
[1732941459876,0.03428031,3647.0,3646.3,3.75638787]
[1732941460032,0.25428993,3648.3,3647.1,2.7419]
[1732941460228,1.6063,3648.6,3648.1,2.74113]
[1732941460472,1.6063,3648.6,3648.2,2.74104]
[1732941461250,1.6063,3648.6,3648.0,2.7412]
[1732941461458,1.6063,3648.6,3647.9,4.38239]
[1732941461874,0.03426264,3648.5,3647.6,2.74145]
[1732941462075,0.03426264,3648.5,3647.4,2.7416]
[1732941462076,2.77514264,3648.5,3647.7,2.74143]
[1732941462244,2.74088,3648.5,3647.7,2.74143]
[1732941462778,0.55,3648.4,3647.7,2.74143]
[1732941464074,0.55,3648.4,3647.7,2.74139]
[1732941464275,0.55,3648.4,3647.8,2.74136]
[1732941464582,0.55,3648.4,3647.6,2.7415]
[1732941464746,0.55,3648.4,3647.4,2.74161]
[1732941465072,0.55,3648.4,3647.7,2.74143]
[1732941465306,0.03426538,3648.3,3647.4,2.74161]
[1732941465509,0.55,3648.4,3647.4,2.74161]
[1732941466008,0.55,3648.4,3647.7,2.74142]
[1732941466407,1.6063,3648.6,3647.9,2.74123]
[1732941466612,0.55,3648.5,3647.9,2.74125]
[1732941467814,0.55,3648.5,3647.7,2.74145]
[1732941468163,0.55,3648.5,3647.9,2.74128]
[1732941468383,1.6063,3648.6,3647.3,1.6411]
[1732941468384,0.55,3648.3,3647.3,1.6411]
[1732941468597,0.55,3648.0,3647.3,1.6411]
[1732941468773,3.29122,3648.0,3647.3,2.74175]
[1732941468996,0.55,3647.8,3647.0,2.74197]
[1732941469169,3.29144,3647.8,3647.0,2.74192]
[1732941469370,0.55,3648.1,3647.3,1.5754]
[1732941469608,0.55,3648.1,3647.7,2.74142]
[1732941469808,0.55,3648.1,3647.3,1.5754]
[1732941469809,0.55,3648.1,3647.4,2.74167]
[1732941470106,0.55,3648.1,3647.6,2.7415]
[1732941470891,0.58426633,3648.1,3647.4,2.74167]
[1732941471089,0.58426633,3648.1,3647.5,2.74153]
[1732941472739,0.58426633,3648.1,3647.5,2.74154]
[1732941472944,0.55,3648.1,3647.4,2.74166]
[1732941473141,3.29115,3648.1,3647.4,2.74166]
[1732941473714,0.58426813,3648.1,3647.2,1.097218]
[1732941473918,0.58426813,3648.1,3647.2,2.74179]
[1732941473919,0.55,3647.4,3647.2,2.74179]
[1732941474120,0.55,3647.4,3647.3,2.74175]
[1732941476644,0.55,3647.4,3647.3,3.447644]
[1732941478021,0.55,3648.0,3647.7,2.74144]
[1732941478813,0.55,3648.0,3647.5,2.7416]
[1732941479462,0.55,3648.0,3647.3,0.705894]
[1732941479640,0.55,3648.0,3647.2,1.5754]
[1732941480664,0.55,3648.3,3647.2,1.5754]
[1732941481834,0.55,3648.6,3647.2,1.5754]
[1732941483389,0.55,3648.6,3647.3,0.01375011]
[1732941483561,0.55,3648.6,3647.4,1.5863]
[1732941483868,0.55,3648.6,3647.5,0.16000501]
[1732941484395,0.55,3648.9,3647.6,1.60005012]
[1732941484679,1.5597,3648.8,3647.6,1.5863]
[1732941484881,0.55,3648.7,3647.6,1.5863]
[1732941485640,0.55,3648.7,3647.7,0.01374452]
[1732941485845,0.55,3648.7,3647.8,0.17600495]
[1732941486445,1.5597,3648.8,3647.8,0.17600495]
[1732941487789,1.5597,3648.8,3647.9,0.01374455]
[1732941488659,0.55,3648.7,3647.9,0.01374455]
[1732941491084,1.5328,3649.7,3648.0,1.6399]
[1732941491284,0.25525622,3649.6,3648.0,1.6399]
[1732941491512,0.25525622,3649.5,3648.0,1.6399]
[1732941491713,1.5328,3649.7,3648.0,1.6399]
[1732941492027,1.5328,3649.5,3648.0,1.6399]
[1732941492179,0.03425544,3649.4,3648.1,0.37551879]
[1732941492383,0.55,3649.3,3648.1,0.37551879]
[1732941492807,0.55,3649.4,3648.1,0.37551879]
[1732941492984,1.4658658,3649.5,3648.1,0.37551879]
[1732941495015,1.4658658,3649.5,3648.2,1.65363473]
[1732941495333,0.55,3649.4,3648.3,0.20291535]
[1732941499024,0.55,3649.4,3648.4,1.6399]
[1732941499720,0.55,3649.4,3648.5,0.01373484]
[1732941500083,0.55,3649.4,3648.4,1.6399]
[1732941503189,0.55,3649.4,3648.7,290.0]
[1732941503522,0.55,3649.4,3648.7,292.72583547]
[1732941507813,0.28326683,3649.9,3648.7,292.72583547]
[1732941507814,0.55,3649.7,3648.8,1.61193176]
[1732941508050,0.55,3649.7,3648.8,1.5982]
[1732941512033,0.55,3649.5,3648.8,1.5982]
[1732941512245,0.55,3649.7,3648.8,1.5982]
[1732941512454,0.55,3649.5,3648.9,2.72583547]
[1732941512766,0.55,3649.7,3648.9,2.72583547]
[1732941513118,0.25531443,3649.6,3648.9,2.72583547]
[1732941513318,0.55,3649.7,3648.9,2.72583547]
[1732941513520,0.55,3649.5,3648.9,2.72583547]
[1732941513824,0.55,3649.7,3648.9,2.72583547]
[1732941514248,0.55,3649.5,3648.9,2.72583547]
[1732941514829,0.55,3649.7,3648.9,2.72583547]
[1732941515030,0.55,3649.5,3648.8,1.5982]
[1732941515229,0.55,3649.7,3648.8,1.5982]
[1732941523059,3.17134837,3650.3,3649.4,1.5175]
[1732941523268,0.14294661,3650.4,3649.4,1.5175]
[1732941523269,0.25580999,3650.2,3649.4,1.5175]
[1732941523592,0.25580999,3650.1,3649.4,1.5175]
[1732941523757,3.14294661,3650.4,3649.4,1.5175]
[1732941523946,1.61737142,3650.3,3649.4,1.5175]
[1732941524150,0.25586521,3650.2,3649.4,1.5175]
[1732941524353,0.80586521,3650.1,3649.4,1.5175]
[1732941524662,0.95213848,3650.3,3649.4,1.5175]
[1732941524663,0.55,3649.9,3649.4,1.5175]
[1732941525163,0.55,3650.2,3649.4,1.5175]
[1732941525362,0.55,3650.0,3649.4,1.5175]
[1732941525680,0.55,3650.0,3649.4,1.68786186]
[1732941525879,0.55,3650.2,3649.4,1.68786186]
[1732941526081,0.55,3650.0,3649.4,1.68786186]
[1732941526484,0.55,3650.2,3649.4,1.68786186]
[1732941526780,0.55,3650.0,3649.4,1.68786186]
[1732941527286,0.55,3650.2,3649.4,1.68786186]
[1732941527451,0.55,3650.0,3649.4,1.68786186]
[1732941527647,0.14294661,3650.4,3649.9,1.6319]
[1732941527848,0.40926397,3650.9,3650.2,1.6319]
[1732941528045,0.40926397,3651.3,3650.2,1.6319]
[1732941528245,1.5804,3651.4,3650.2,1.6319]
[1732941528483,0.25559039,3651.3,3650.2,1.6319]
[1732941528646,1.5804,3651.4,3650.3,0.16319]
[1732941528849,0.25558869,3651.3,3650.4,1.5423]
[1732941529068,1.5804,3651.4,3650.4,1.5423]
[1732941529270,4.09504163,3651.5,3650.4,1.5423]
[1732941529820,2.13745997,3652.4,3650.3,0.16319]
[1732941529821,1.6112,3652.3,3651.2,1.5423]
[1732941529987,0.25542705,3652.4,3651.3,0.24944385]
[1732941530186,1.6112,3652.6,3651.1,0.95213848]
[1732941530187,0.14287209,3652.3,3651.4,1.5423]
[1732941531112,0.03422881,3652.2,3651.4,1.5423]
[1732941531278,0.14287209,3652.3,3651.4,1.5423]
[1732941531808,0.58422881,3652.2,3651.4,1.5423]
[1732941532015,0.55,3652.0,3651.4,1.5423]
[1732941532177,0.55,3651.8,3651.4,1.79174385]
[1732941533286,0.55,3652.1,3651.4,1.5423]
[1732941533616,0.55,3652.2,3651.4,1.5423]
[1732941538689,2.10697057,3651.7,3650.9,1.5921]
[1732941539013,0.55,3651.4,3650.4,1.5921]
[1732941539175,0.55,3651.4,3650.4,1.767629]
[1732941539376,0.55,3651.4,3650.5,1.5921]
[1732941541924,0.14287209,3652.3,3650.5,1.5921]
[1732941542431,0.14287209,3652.3,3650.8,1.5921]
[1732941542589,0.03422848,3652.6,3650.8,1.5921]
[1732941542788,1.75365457,3652.7,3651.0,1.5921]
[1732941542989,3.71777057,3652.5,3651.0,1.5921]
[1732941543191,0.03423132,3652.4,3651.4,2.10697057]
[1732941543495,0.1587292,3652.8,3651.5,1.5654]
[1732941544217,0.1587292,3652.8,3651.9,2.10697057]
[1732941544425,0.1587292,3652.8,3652.4,1.5654]
[1732941546332,0.55,3652.7,3652.4,1.5654]
[1732941547028,0.1587292,3652.8,3652.4,1.5654]
[1732941549432,0.55,3652.7,3652.4,1.5654]
[1732941556857,0.1587292,3652.8,3652.4,1.5654]
[1732941557036,0.1587292,3652.8,3652.5,0.15654]
[1732941557233,0.1587292,3652.8,3652.5,0.14524547]
[1732941558362,0.3064798,3654.2,3652.4,2.20697057]
[1732941558529,0.3064798,3654.2,3652.1,3.0]
[1732941558530,0.1,3654.1,3652.1,0.2745]
[1732941558723,0.3064798,3654.2,3651.6,0.55145215]
[1732941558724,0.3064798,3654.2,3651.6,0.15610372]
[1732941558954,0.1,3654.1,3652.9,0.79264583]
[1732941559552,0.55,3654.0,3652.9,0.79121884]
[1732941560272,0.3064798,3654.2,3652.9,0.79121884]
[1732941560426,0.1,3654.1,3652.9,0.79121884]
[1732941561042,0.3064798,3654.2,3652.9,0.79121884]
[1732941561365,0.3064798,3654.2,3653.0,1.5877]